fUST/lending_fUST_20240805
["ID","MTS","AMOUNT","RATE_DAILY","PERIOD"]
[334255736,1722869449583,-151.0,0.00041642,14]
[334255737,1722869449592,-1956.906808,0.00041642,14]
[334255738,1722869449602,-1956.906808,0.00041642,14]
[334255739,1722869449612,-151.0,0.00041642,14]
[334255740,1722869449622,-500.0,0.00041643,31]
[334255741,1722869449631,-500.0,0.00041643,31]
[334255742,1722869449640,-500.0,0.00041643,31]
[334255743,1722869449650,-500.0,0.00041643,31]
[334255744,1722869449661,-500.0,0.00041643,31]
[334255745,1722869449670,-673.96,0.00041643,31]
[334255746,1722869449680,-500.5222537,0.00041643,31]
[334255747,1722869449690,-500.0,0.00041643,31]
[334255748,1722869449699,-500.0,0.00041643,31]
[334255749,1722869449709,-500.0,0.00041643,31]
[334255750,1722869449723,-500.0,0.00041643,31]
[334255751,1722869449732,-586.87,0.00041643,31]
[334255752,1722869449742,-500.0,0.00041643,31]
[334255753,1722869449752,-506.41261745,0.00041643,31]
[334255754,1722869449763,-974.93,0.00041643,31]
[334255755,1722869449773,-500.0,0.00041643,31]
[334255756,1722869449783,-500.0,0.00041643,31]
[334255757,1722869449796,-602.51,0.00041643,31]
[334255758,1722869449806,-500.0,0.00041643,31]
[334255759,1722869449817,-500.0,0.00041643,31]
[334255760,1722869449833,-560.79,0.00041643,31]
[334255761,1722869449843,-500.0,0.00041643,31]
[334255762,1722869449853,-905.0,0.00041643,31]
[334255763,1722869449863,-674.81,0.00041643,31]
[334255764,1722869449873,-500.0,0.00041643,31]
[334255765,1722869449883,-500.0,0.00041643,31]
[334255766,1722869449894,-500.0,0.00041643,31]
[334255767,1722869449904,-2430.13,0.00041643,31]
[334255768,1722869449914,-271.08905745,0.00041643,31]
[334255769,1722869449924,-1747.43,0.00041643,31]
[334255770,1722869449934,-272.71820398,0.00041643,31]
[334255771,1722869449944,-500.0,0.00041643,31]
[334255772,1722869449953,-500.0,0.00041643,31]
[334255773,1722869449963,-523.00481082,0.00041643,31]
[334255774,1722869449974,-500.0,0.00041643,31]
[334255775,1722869449983,-500.0,0.00041643,31]
[334255776,1722869449993,-500.0,0.00041643,31]
[334255777,1722869450002,-369.77249009,0.00041643,31]
[334255778,1722869450012,-1873.59,0.00041643,31]
[334255779,1722869450021,-500.0,0.00041643,31]
[334255780,1722869450031,-500.0,0.00041643,31]
[334255781,1722869450039,-500.0,0.00041643,31]
[334255782,1722869450049,-730.68,0.00041643,31]
[334255783,1722869450058,-500.0,0.00041643,31]
[334255784,1722869450069,-500.0,0.00041643,31]
[334255785,1722869450086,-500.0,0.00041643,31]
[334255786,1722869450096,-500.0,0.00041643,31]
[334255787,1722869450106,-527.64,0.00041643,31]
[334255788,1722869450117,-1485.29,0.00041643,31]
[334255789,1722869450126,-500.0,0.00041643,31]
[334255790,1722869450136,-500.0,0.00041643,31]
[334255791,1722869450145,-500.0,0.00041643,31]
[334255792,1722869450154,-500.0,0.00041643,31]
[334255793,1722869450164,-500.0,0.00041643,31]
[334255794,1722869450174,-500.0,0.00041643,31]
[334255795,1722869450184,-500.0,0.00041643,31]
[334255796,1722869450193,-500.0,0.00041643,31]
[334255797,1722869450202,-500.0,0.00041643,31]
[334255798,1722869450212,-500.0,0.00041643,31]
[334255799,1722869450221,-500.0,0.00041643,31]
[334255800,1722869450232,-500.0,0.00041643,31]
[334255801,1722869450362,-500.0,0.00041643,31]
[334255802,1722869450372,-558.23,0.00041643,31]
[334255803,1722869450382,-500.0,0.00041643,31]
[334255804,1722869450391,-500.0,0.00041643,31]
[334255805,1722869450401,-590.34,0.00041643,31]
[334255806,1722869450410,-500.0,0.00041643,31]
[334255807,1722869450420,-534.91,0.00041643,31]
[334255808,1722869450429,-1189.55,0.00041643,31]
[334255809,1722869450439,-1121.6,0.00041643,31]
[334255810,1722869450448,-500.0,0.00041643,31]
[334255811,1722869450458,-191.93392306,0.00041643,31]
[334255812,1722869450468,-500.0,0.00041643,31]
[334255813,1722869450477,-500.0,0.00041643,31]
[334255814,1722869450488,-1261.4,0.00041643,31]
[334255815,1722869450498,-500.0,0.00041643,31]
[334255816,1722869450508,-500.0,0.00041643,31]
[334255817,1722869450518,-500.0,0.00041643,31]
[334255818,1722869450528,-500.0,0.00041643,31]
[334255819,1722869450537,-500.0,0.00041643,31]
[334255820,1722869450547,-500.0,0.00041643,31]
[334255821,1722869450556,-572.32,0.00041643,31]
[334255822,1722869450566,-824.69,0.00041643,31]
[334255823,1722869450579,-909.24,0.00041643,31]
[334255824,1722869450589,-500.0,0.00041643,31]
[334255825,1722869450598,-500.0,0.00041643,31]
[334255826,1722869450607,-518.76,0.00041643,31]
[334255827,1722869450616,-500.0,0.00041643,31]
[334255828,1722869450626,-500.0,0.00041643,31]
[334255829,1722869450635,-623.46,0.00041643,31]
[334255830,1722869450645,-500.0,0.00041643,31]
[334255831,1722869450654,-500.0,0.00041643,31]
[334255832,1722869450664,-500.0,0.00041643,31]
[334255833,1722869450674,-1050.3,0.00041643,31]
[334255834,1722869450685,-500.0,0.00041643,31]
[334255835,1722869450695,-365.32748004,0.00041643,31]
[334255836,1722869450705,-500.0,0.00041643,31]
[334255837,1722869450716,-500.0,0.00041643,31]
[334255838,1722869450726,-720.92,0.00041643,31]
[334255839,1722869450738,-500.0,0.00041643,31]
[334255840,1722869450748,-500.0,0.00041643,31]
[334255841,1722869450758,-500.0,0.00041643,31]
[334255842,1722869450767,-500.0,0.00041643,31]
[334255843,1722869450776,-500.0,0.00041643,31]
[334255844,1722869450786,-500.0,0.00041643,31]
[334255845,1722869450795,-500.0,0.00041643,31]
[334255846,1722869450807,-500.0,0.00041643,31]
[334255847,1722869450816,-351.04895304,0.00041643,31]
[334255848,1722869450883,-148.95104696,0.00041643,31]
[334255849,1722869450892,-500.0,0.00041643,31]
[334255850,1722869450902,-500.0,0.00041643,31]
[334255851,1722869450911,-798.34,0.00041643,31]
[334255852,1722869450921,-500.0,0.00041643,31]
[334255853,1722869450930,-500.0,0.00041643,31]
[334255854,1722869450940,-500.0,0.00041643,31]
[334255855,1722869450950,-500.0,0.00041643,31]
[334255856,1722869450959,-500.0,0.00041643,31]
[334255857,1722869450969,-500.0,0.00041643,31]
[334255858,1722869450978,-500.0,0.00041643,31]
[334255859,1722869450988,-500.0,0.00041643,31]
[334255860,1722869450997,-500.0,0.00041643,31]
[334255861,1722869451007,-500.0,0.00041643,31]
[334255862,1722869451016,-500.0,0.00041643,31]
[334255863,1722869451026,-707.22,0.00041643,31]
[334255864,1722869451035,-693.88,0.00041643,31]
[334255865,1722869451045,-500.0,0.00041643,31]
[334255866,1722869451055,-500.0,0.00041643,31]
[334255867,1722869451065,-500.0,0.00041643,31]
[334255868,1722869451079,-504.33677994,0.00041643,31]
[334255869,1722869451089,-500.0,0.00041643,31]
[334255870,1722869451098,-500.0,0.00041643,31]
[334255871,1722869451107,-1028.03,0.00041643,31]
[334255872,1722869451117,-500.0,0.00041643,31]
[334255873,1722869451126,-500.0,0.00041643,31]
[334255874,1722869451136,-500.0,0.00041643,31]
[334255875,1722869451145,-605.71,0.00041643,31]
[334255876,1722869451155,-500.0,0.00041643,31]
[334255877,1722869451164,-305.66652419,0.00041643,31]
[334255878,1722869451174,-769.85,0.00041643,31]
[334255879,1722869451183,-229.36681314,0.00041643,31]
[334255880,1722869451192,-1021.68,0.00041643,31]
[334255881,1722869451202,-500.0,0.00041643,31]
[334255882,1722869451211,-856.82,0.00041643,31]
[334255883,1722869451221,-500.0,0.00041643,31]
[334255884,1722869451230,-500.0,0.00041643,31]
[334255885,1722869451240,-500.0,0.00041643,31]
[334255886,1722869451249,-500.0,0.00041643,31]
[334255887,1722869451259,-564.8,0.00041643,31]
[334255888,1722869451269,-1260.79,0.00041643,31]
[334255889,1722869451278,-826.62,0.00041643,31]
[334255890,1722869451288,-500.0,0.00041643,31]
[334255891,1722869451298,-500.0,0.00041643,31]
[334255892,1722869451307,-500.0,0.00041643,31]
[334255893,1722869451316,-500.0,0.00041643,31]
[334255894,1722869451332,-834.17,0.00041643,31]
[334255895,1722869451343,-500.0,0.00041643,31]
[334255896,1722869451352,-976.52624386,0.00041643,31]
[334255897,1722869451449,3983.70417857,0.0003726,31]
[334255898,1722869451471,2805.88770711,0.0003726,31]
[334255900,1722869493004,1263.77838108,0.00021916,2]
[334255901,1722869493025,115.17285001,0.00021916,2]
[334255902,1722869510104,484.0,0.00021916,2]
[334255904,1722869516701,169.049931,0.00036114,2]
[334255905,1722869532984,151.0,0.0003,120]
[334255906,1722869533643,151.0,0.00033753,120]
[334255907,1722869540086,215.7100545,0.00027396,2]
[334255908,1722869638583,273.37336231,9.9e-05,2]
[334255910,1722870430125,-186.463503,0.00014247,2]
[334255911,1722870430152,-722.1862309,0.00021011,2]
[334255912,1722870430183,-3146.98039427,0.00021011,2]
[334255913,1722870430213,-1676.11058833,0.000249,2]
[334255914,1722870450110,-2886.23250609,0.000249,2]
[334255915,1722870450132,-154.74467129,0.00025,2]
[334255916,1722870450153,-237.41123286,0.00026639,2]
[334255917,1722870451116,-339.5990981,0.00026639,2]
[334255918,1722870545675,-2154.95792653,0.000249,2]
[334255919,1722870545697,-151.0,0.0003,120]
[334255920,1722870545719,-200.0,0.0003,120]
[334255921,1722870545740,-304.46663597,0.00030181,4]
[334255922,1722870545763,-609.9421795,0.00033929,2]
[334255923,1722870545784,-200.0,0.00034,120]
[334255924,1722870545806,-151.0,0.00035014,120]
[334255925,1722870549169,-2921.57949344,0.0003726,31]
[334255926,1722870549193,-151.0,0.00037507,120]
[334255927,1722870614587,151.0,0.0003,120]
[334255928,1722870615208,151.0,0.00033753,120]
[334255929,1722870615790,151.0,0.00037507,120]
[334255968,1722870633813,-484.83082982,0.00039,120]
[334255970,1722870633825,-650.50000001,0.00039,120]
[334255972,1722870633837,-7732.66917017,0.00039,120]
[334255974,1722870633847,-401.91494134,0.0003998,2]
[334255976,1722870633857,-835.09032849,0.0004,120]
[334255978,1722870633870,-8032.90967151,0.0004,120]
[334255979,1722870633879,-200.0,0.0004,120]
[334255981,1722870633888,-250.0,0.0004,120]
[334255983,1722870633898,-200.0,0.0004,2]
[334255985,1722870633908,-151.0,0.00040027,120]
[334255987,1722870633918,-515.54043467,0.0004045,28]
[334255989,1722870633927,-16357.54989382,0.00040528,2]
[334255991,1722870633940,-5375.0,0.00040528,2]
[334255993,1722870633951,-473.83415027,0.00040528,2]
[334256029,1722870638254,-1346.5,0.00040528,2]
[334256030,1722870638639,-3910.47849151,0.00040528,2]
[334256044,1722870639821,-33794.8534942,0.00040528,2]
[334256046,1722870639835,-14861.28,0.0004055,60]
[334256047,1722870639848,-21349.11065949,0.000408,30]
[334256048,1722870639860,-2261.17,0.0004098,3]
[334256049,1722870639873,-2308.65908392,0.0004099,5]
[334256051,1722870639886,-2713.4,0.0004099,3]
[334256052,1722870639898,-176.08323542,0.00040993,2]
[334256053,1722870639912,-5000.0,0.00041,41]
[334256054,1722870639923,-10053.48986323,0.00041,30]
[334256055,1722870639935,-199.775534,0.00041,4]
[334256056,1722870639947,-6637.45977444,0.00041,120]
[334256057,1722870639962,-2230.54022556,0.00041,120]
[334256058,1722870639973,-11543.2954196,0.00041085,5]
[334256059,1722870639985,-5000.0,0.00041094,30]
[334256060,1722870639997,-500.0,0.00041094,31]
[334256061,1722870640008,-500.0,0.00041094,31]
[334256062,1722870640018,-500.0,0.00041094,31]
[334256063,1722870640029,-500.0,0.00041094,31]
[334256064,1722870640041,-591.56617754,0.00041094,31]
[334256065,1722870640052,-500.0,0.00041094,31]
[334256066,1722870640062,-500.0,0.00041095,31]
[334256067,1722870640073,-500.0,0.00041095,31]
[334256068,1722870640085,-151.0,0.00041095,14]
[334256069,1722870640096,-500.0,0.00041095,31]
[334256070,1722870640107,-500.0,0.00041095,31]
[334256072,1722870640123,-500.0,0.00041095,31]
[334256074,1722870640135,-151.0,0.00041095,14]
[334256076,1722870640147,-500.0,0.00041095,31]
[334256078,1722870640159,-500.93836648,0.00041095,31]
[334256080,1722870640171,-500.0,0.00041095,31]
[334256083,1722870640186,-500.0,0.00041095,31]
[334256085,1722870640198,-505.44865396,0.00041095,31]
[334256087,1722870640225,-500.0,0.00041095,31]
[334256089,1722870640236,-640.18,0.00041095,31]
[334256091,1722870640247,-500.0,0.00041095,31]
[334256093,1722870640258,-500.0,0.00041095,31]
[334256095,1722870640269,-500.0,0.00041095,31]
[334256097,1722870640280,-513.77146179,0.00041095,31]
[334256099,1722870640291,-500.0,0.00041095,31]
[334256101,1722870640302,-507.3,0.00041095,31]
[334256103,1722870640314,-500.0,0.00041095,31]
[334256105,1722870640325,-500.0,0.00041095,31]
[334256107,1722870640337,-500.0,0.00041095,31]
[334256110,1722870640349,-500.0,0.00041095,31]
[334256112,1722870640361,-500.0,0.00041095,31]
[334256114,1722870640372,-443.65844645,0.00041095,31]
[334256116,1722870640383,-500.0,0.00041095,31]
[334256118,1722870640395,-151.0,0.00041095,14]
[334256120,1722870640406,-500.0,0.00041095,31]
[334256122,1722870640418,-203.16539352,0.00041095,31]
[334256125,1722870640429,-500.0,0.00041095,31]
[334256127,1722870640440,-500.0,0.00041095,31]
[334256129,1722870640452,-500.0,0.00041095,31]
[334256131,1722870640463,-500.0,0.00041095,31]
[334256133,1722870640475,-500.0,0.00041095,31]
[334256135,1722870640486,-500.0,0.00041095,31]
[334256138,1722870640496,-500.0,0.00041095,31]
[334256140,1722870640507,-500.0,0.00041095,31]
[334256142,1722870640518,-500.0,0.00041095,31]
[334256144,1722870640529,-546.57103954,0.00041095,2]
[334256146,1722870640540,-500.0,0.00041095,31]
[334256148,1722870640551,-500.0,0.00041095,31]
[334256151,1722870640562,-500.0,0.00041095,31]
[334256153,1722870640572,-500.0,0.00041095,31]
[334256155,1722870640583,-500.0,0.00041095,31]
[334256157,1722870640594,-500.0,0.00041095,31]
[334256159,1722870640605,-505.80364204,0.00041095,31]
[334256161,1722870640616,-500.0,0.00041095,31]
[334256170,1722870640835,-500.0,0.00041095,31]
[334256171,1722870640861,-500.0,0.00041095,31]
[334256172,1722870640870,-500.0,0.00041095,31]
[334256173,1722870640880,-500.0,0.00041095,31]
[334256174,1722870640889,-394.03282461,0.00041095,31]
[334256175,1722870640904,-105.96717539,0.00041095,31]
[334256176,1722870640914,-500.0,0.00041095,31]
[334256177,1722870640924,-523.42,0.00041095,31]
[334256178,1722870640933,-565.4385483,0.00041095,31]
[334256179,1722870640942,-500.0,0.00041095,31]
[334256180,1722870640954,-500.0,0.00041095,31]
[334256181,1722870640964,-500.0,0.00041095,31]
[334256182,1722870640973,-516.08247517,0.00041095,31]
[334256183,1722870640982,-581.38605208,0.00041095,31]
[334256184,1722870640993,-500.0,0.00041095,31]
[334256185,1722870641003,-500.0,0.00041095,31]
[334256186,1722870641012,-500.0,0.00041095,31]
[334256187,1722870641022,-431.23835308,0.00041095,31]
[334256188,1722870641031,-500.0,0.00041095,31]
[334256189,1722870641040,-339.6601276,0.00041095,31]
[334256190,1722870641050,-254.9933262,0.00041095,31]
[334256191,1722870641059,-500.0,0.00041095,31]
[334256192,1722870641069,-500.0,0.00041095,31]
[334256193,1722870641079,-500.0,0.00041095,31]
[334256194,1722870641088,-500.0,0.00041095,31]
[334256195,1722870641098,-500.0,0.00041095,31]
[334256196,1722870641111,-500.0,0.00041095,31]
[334256197,1722870641121,-500.0,0.00041095,31]
[334256198,1722870641130,-500.0,0.00041095,31]
[334256199,1722870641139,-500.0,0.00041095,31]
[334256200,1722870641150,-500.0,0.00041095,31]
[334256201,1722870641159,-500.0,0.00041095,31]
[334256202,1722870641168,-546.93588173,0.00041095,31]
[334256203,1722870641179,-500.0,0.00041095,31]
[334256204,1722870641188,-500.0,0.00041095,31]
[334256205,1722870641198,-500.0,0.00041095,31]
[334256206,1722870641207,-500.0,0.00041095,31]
[334256207,1722870641218,-500.0,0.00041095,31]
[334256208,1722870641228,-500.0,0.00041095,31]
[334256209,1722870641245,-500.0,0.00041095,31]
[334256210,1722870641263,-500.0,0.00041095,31]
[334256211,1722870641273,-500.0,0.00041095,31]
[334256212,1722870641282,-500.0,0.00041095,31]
[334256213,1722870641291,-506.44181025,0.00041095,31]
[334256214,1722870641300,-500.0,0.00041095,31]
[334256215,1722870641309,-500.0,0.00041095,31]
[334256216,1722870641318,-613.05358503,0.00041095,31]
[334256217,1722870641328,-503.69903123,0.00041095,31]
[334256218,1722870641337,-500.0,0.00041095,31]
[334256219,1722870641346,-500.0,0.00041095,31]
[334256220,1722870641356,-500.0,0.00041095,31]
[334256221,1722870641365,-513.0,0.00041095,31]
[334256222,1722870641374,-500.0,0.00041095,31]
[334256223,1722870641384,-500.0,0.00041095,31]
[334256224,1722870641393,-500.0,0.00041095,31]
[334256225,1722870641404,-341.4599383,0.00041095,31]
[334256226,1722870641413,-500.0,0.00041095,31]
[334256227,1722870641423,-500.5222537,0.00041095,31]
[334256228,1722870641432,-500.0,0.00041095,31]
[334256229,1722870641441,-500.0,0.00041095,31]
[334256230,1722870641450,-500.0,0.00041095,31]
[334256231,1722870641459,-500.0,0.00041095,31]
[334256232,1722870641468,-500.9047467,0.00041095,31]
[334256233,1722870641478,-500.0,0.00041095,31]
[334256234,1722870641487,-500.0,0.00041095,31]
[334256235,1722870641497,-500.0,0.00041095,31]
[334256236,1722870641506,-500.0,0.00041095,31]
[334256237,1722870641515,-220.43645565,0.00041095,31]
[334256238,1722870641523,-500.0,0.00041095,31]
[334256239,1722870641533,-500.0,0.00041095,31]
[334256240,1722870641542,-500.0,0.00041095,31]
[334256241,1722870641551,-500.0,0.00041095,31]
[334256242,1722870641561,-500.0,0.00041095,31]
[334256243,1722870641570,-500.0,0.00041095,31]
[334256244,1722870641580,-500.0,0.00041095,31]
[334256245,1722870641589,-500.0,0.00041095,31]
[334256246,1722870641598,-500.0,0.00041095,31]
[334256247,1722870641608,-500.0,0.00041095,31]
[334256248,1722870641617,-602.51,0.00041095,31]
[334256249,1722870641626,-500.0,0.00041095,31]
[334256250,1722870641635,-500.0,0.00041095,31]
[334256251,1722870641644,-621.27152233,0.00041095,31]
[334256252,1722870641654,-500.0,0.00041095,31]
[334256253,1722870641664,-500.0,0.00041095,31]
[334256254,1722870641673,-500.0,0.00041095,31]
[334256255,1722870641682,-500.0,0.00041095,31]
[334256256,1722870641691,-500.0,0.00041095,31]
[334256257,1722870641701,-500.0,0.00041095,31]
[334256258,1722870641710,-500.0,0.00041095,31]
[334256259,1722870641719,-500.0,0.00041095,31]
[334256260,1722870641728,-500.0,0.00041095,31]
[334256261,1722870641739,-500.0,0.00041095,31]
[334256262,1722870641763,-500.0,0.00041095,31]
[334256263,1722870641772,-500.0,0.00041095,31]
[334256264,1722870641781,-500.0,0.00041095,31]
[334256265,1722870641792,-500.0,0.00041095,31]
[334256266,1722870641801,-500.0,0.00041095,30]
[334256267,1722870641810,-500.0,0.00041095,31]
[334256268,1722870641819,-179.7037339,0.00041095,31]
[334256269,1722870641828,-500.0,0.00041095,31]
[334256270,1722870641838,-500.0,0.00041095,31]
[334256271,1722870641847,-500.0,0.00041095,31]
[334256272,1722870641857,-500.0,0.00041095,31]
[334256273,1722870641867,-499.99548233,0.00041095,31]
[334256274,1722870641876,-500.0,0.00041095,31]
[334256275,1722870641886,-500.0,0.00041095,31]
[334256276,1722870641896,-500.0,0.00041095,31]
[334256277,1722870641908,-500.0,0.00041095,31]
[334256278,1722870641918,-449.02274609,0.00041095,31]
[334256279,1722870641928,-500.0,0.00041095,31]
[334256280,1722870641938,-500.0,0.00041095,31]
[334256281,1722870641948,-500.0,0.00041095,31]
[334256282,1722870641958,-500.0,0.00041095,31]
[334256283,1722870641967,-500.0,0.00041095,31]
[334256284,1722870641976,-500.0,0.00041095,31]
[334256285,1722870641985,-500.0,0.00041095,31]
[334256286,1722870641994,-500.0,0.00041095,31]
[334256287,1722870642003,-500.0,0.00041095,31]
[334256288,1722870642013,-500.0,0.00041095,31]
[334256289,1722870642022,-500.0,0.00041095,31]
[334256290,1722870642032,-500.0,0.00041095,31]
[334256291,1722870642041,-500.0,0.00041095,31]
[334256292,1722870642050,-500.0,0.00041095,31]
[334256293,1722870642060,-500.0,0.00041095,31]
[334256294,1722870642069,-500.0,0.00041095,31]
[334256295,1722870642079,-500.0,0.00041095,31]
[334256296,1722870642089,-500.0,0.00041095,31]
[334256297,1722870642098,-500.0,0.00041095,31]
[334256298,1722870642110,-500.0,0.00041095,31]
[334256299,1722870642122,-500.0,0.00041095,31]
[334256300,1722870642132,-500.0,0.00041095,31]
[334256301,1722870642142,-477.25119731,0.00041095,31]
[334256302,1722870642152,-500.0,0.00041095,31]
[334256303,1722870642162,-500.0,0.00041095,31]
[334256304,1722870642172,-508.84864392,0.00041095,31]
[334256305,1722870642182,-500.0658617,0.00041095,31]
[334256306,1722870642192,-500.0,0.00041095,31]
[334256307,1722870642202,-262.96642406,0.00041095,31]
[334256308,1722870642212,-500.0,0.00041095,30]
[334256309,1722870642222,-500.0,0.00041095,31]
[334256310,1722870642232,-79.86325795,0.00041095,2]
[334256314,1722870642630,-364.26537891,0.00041095,2]
[334256316,1722870642642,-55.87136314,0.00041095,2]
[334256318,1722870642652,-500.0,0.00041095,31]
[334256319,1722870642661,-606.39,0.00041095,31]
[334256320,1722870642671,-360.96281997,0.00041095,31]
[334256355,1722870643223,-139.03718003,0.00041095,31]
[334256356,1722870643234,-315.4162721,0.00041095,31]
[334256357,1722870643246,-184.5837279,0.00041095,31]
[334256358,1722870643256,-500.0,0.00041095,31]
[334256359,1722870643283,-547.81693623,0.00041095,31]
[334256360,1722870643292,-500.0,0.00041095,31]
[334256361,1722870643302,-500.0,0.00041095,31]
[334256362,1722870643311,-500.0,0.00041095,31]
[334256363,1722870643321,-500.0,0.00041095,31]
[334256364,1722870643330,-500.0,0.00041095,31]
[334256365,1722870643339,-500.0,0.00041095,31]
[334256366,1722870643348,-500.0,0.00041095,31]
[334256367,1722870643357,-500.0,0.00041095,31]
[334256368,1722870643367,-500.0,0.00041095,31]
[334256369,1722870643376,-553.5554284,0.00041095,31]
[334256370,1722870643386,-500.0,0.00041095,31]
[334256371,1722870643395,-500.0,0.00041095,31]
[334256372,1722870643404,-500.0,0.00041095,31]
[334256373,1722870643413,-500.0,0.00041095,31]
[334256375,1722870643423,-500.0,0.00041095,31]
[334256376,1722870643432,-218.61735218,0.00041095,31]
[334256378,1722870643442,-500.0,0.00041095,31]
[334256380,1722870643451,-500.0,0.00041095,31]
[334256381,1722870643460,-500.0,0.00041095,31]
[334256382,1722870643470,-609.21658679,0.00041095,31]
[334256383,1722870643479,-500.0,0.00041095,31]
[334256384,1722870643488,-500.0,0.00041095,31]
[334256385,1722870643497,-500.0,0.00041095,31]
[334256386,1722870643506,-500.0,0.00041095,31]
[334256387,1722870643515,-508.51,0.00041095,31]
[334256388,1722870643524,-500.0,0.00041095,31]
[334256389,1722870643533,-500.0,0.00041095,31]
[334256390,1722870643542,-500.0,0.00041095,31]
[334256391,1722870643552,-315.84178981,0.00041095,31]
[334256392,1722870643561,-500.0,0.00041095,2]
[334256393,1722870643570,-501.35478265,0.00041095,31]
[334256394,1722870643579,-500.0,0.00041095,31]
[334256395,1722870643588,-500.0,0.00041095,31]
[334256396,1722870643598,-500.0,0.00041095,31]
[334256397,1722870643607,-500.0,0.00041095,31]
[334256398,1722870643617,-607.18403529,0.00041095,31]
[334256399,1722870643626,-500.0,0.00041095,31]
[334256400,1722870643635,-500.0,0.00041095,31]
[334256401,1722870643645,-500.0,0.00041095,31]
[334256402,1722870643655,-387.12051068,0.00041095,31]
[334256403,1722870643664,-500.0,0.00041095,31]
[334256404,1722870643673,-500.0,0.00041095,31]
[334256405,1722870643682,-500.0,0.00041095,31]
[334256406,1722870643692,-500.0,0.00041095,31]
[334256407,1722870643702,-500.0,0.00041095,31]
[334256408,1722870643711,-1145.05,0.00041095,31]
[334256409,1722870643720,-500.0,0.00041095,31]
[334256410,1722870643729,-500.0,0.00041095,31]
[334256411,1722870643739,-500.0,0.00041095,31]
[334256412,1722870643748,-538.97,0.00041095,31]
[334256413,1722870643758,-505.21773353,0.00041095,31]
[334256414,1722870643775,-500.0,0.00041095,31]
[334256415,1722870643792,-500.0,0.00041095,31]
[334256416,1722870643802,-500.0,0.00041095,31]
[334256417,1722870643811,-500.0,0.00041095,31]
[334256418,1722870643819,-500.0,0.00041095,31]
[334256419,1722870643829,-500.0,0.00041095,31]
[334256420,1722870643838,-500.0,0.00041095,31]
[334256421,1722870643846,-512.28431684,0.00041095,31]
[334256422,1722870643855,-500.0,0.00041095,31]
[334256423,1722870643865,-500.0,0.00041095,31]
[334256424,1722870643874,-500.0,0.00041095,31]
[334256425,1722870643883,-500.0,0.00041095,31]
[334256426,1722870643892,-500.0,0.00041095,31]
[334256427,1722870643901,-500.0,0.00041095,31]
[334256428,1722870643911,-500.0,0.00041095,31]
[334256429,1722870643920,-500.0,0.00041095,31]
[334256430,1722870643930,-500.0,0.00041095,31]
[334256431,1722870643939,-546.20072774,0.00041095,31]
[334256432,1722870643948,-500.0,0.00041095,31]
[334256433,1722870643958,-500.0,0.00041095,31]
[334256434,1722870643967,-500.0,0.00041095,31]
[334256435,1722870643976,-500.0,0.00041095,31]
[334256436,1722870643986,-500.0,0.00041095,31]